Cogmind - Beta 14 @@@ ROGUE MODE // 2025.03.16 @ 17:22:41 Player: potator Result: Destroyed by as-37258 with Assembled Maul Performance ------------- Evolutions (0) 0 Regions Visited (2) 400 Robots Destroyed (9) 45 Value Destroyed (258) 258 Prototype IDs (0) 0 Alien Tech Used (0) 0 Bonus (0) 0 TOTAL SCORE: 703 Bonus ------- None Cogmind --------- Core Integrity 0/250 Matter 268/300 Energy 100/100 System Corruption 3% Temperature Cool (0) Movement Treading (160) Location -10/Mines Parts ------- > --- POWER (1) -------- (None) > --- PROPULSION (2) --- Light Treads > --- UTILITY (2) ------ Small Storage Unit Signal Interpreter > --- WEAPON (2) ------- Rocket Launcher > --- INVENTORY (8) ---- Structural Scanner Seismic Detector Targeting Computer Hacking Suite EM Pulse Gun Light Assault Rifle Datajack Datajack Peak State ------------ > --- POWER ------------ Ion Engine > --- PROPULSION ------- Aluminum Leg Aluminum Leg > --- UTILITY ---------- Small Storage Unit Signal Interpreter > --- WEAPON ----------- Beam Cannon Assault Rifle > --- INVENTORY -------- Structural Scanner Seismic Detector Hacking Suite EM Pulse Gun Light Assault Rifle Grenade Launcher Datajack Datajack [Rating: 8] Favorites ----------- Power Ion Engine Engine Ion Engine Propulsion Aluminum Leg Treads Light Treads Leg Aluminum Leg Utility Small Storage Unit Device Seismic Detector Storage Small Storage Unit Processor Signal Interpreter Weapon Assault Rifle Energy Gun EM Pulse Gun Energy Cannon Beam Cannon Ballistic Gun Assault Rifle Launcher Rocket Launcher Build | -11 -10 -10 ------- Run | Yrd Mat Min Slots Evolved . | . . . Power . | . . . Propulsion . | . . . Utility . | . . . Weapon . | . . . Parts Attached 17 | 6 7 4 Power 2 | 1 1 . Engine 2 | 1 1 . Core . | . . . Reactor . | . . . Propulsion 4 | 2 1 1 Treads 1 | . . 1 Leg 3 | 2 1 . Wheel . | . . . Hover . | . . . Flight . | . . . Utility 4 | 1 3 . Device 1 | . 1 . Storage 2 | 1 1 . Processor 1 | . 1 . Hackware . | . . . Protection . | . . . Artifact . | . . . Weapon 7 | 2 2 3 Energy Gun 1 | 1 . . Energy Cannon 1 | . 1 . Ballistic Gun 4 | 1 1 2 Ballistic Cannon . | . . . Launcher 1 | . . 1 Special Weapon . | . . . Impact Weapon . | . . . Slashing Weapon . | . . . Piercing Weapon . | . . . Special Melee Weapon . | . . . Unidentified Prototypes . | . . . Parts Lost 6 | . . 6 Power 1 | . . 1 Propulsion 2 | . . 2 Utility . | . . . Weapon 3 | . . 3 Highest Loss Streak 5 | . . 5 To Critical Strikes . | . . . Average Slot Usage (%) 88 | . 91 77 Engine 11 | . 13 4 Treads 1 | . . 8 Leg 23 | . 28 7 Storage 13 | . 13 14 Processor 8 | . 6 14 Energy Cannon 6 | . 7 3 Ballistic Gun 18 | . 20 14 Launcher 2 | . . 9 Peak Build Rating 8 | 6 8 8 Average Rating 6 | 4 6 7 On Entrance 4 | . 6 8 Naked Turns . | . . . Heaviest Build 15 | 14 15 15 Greatest Support 20 | 20 20 20 Greatest Overweight (x) 3 | 1 . 3 Average Overweight (x) . | . . . Largest Inventory Capacity 8 | 8 8 8 Average Capacity 7 | 6 7 8 Most Carried 8 | 3 8 8 Average Carried 5 | . 4 7 Final Capacity 8 | 8 8 8 Final Carried 8 | . 8 8 Class Distribution -------------------- 100% | Mutant Dominant Class ---------------- Mutant | -10/Materials Mutant | -10/Mines Resources | -11 -10 -10 ----------- Run | Yrd Mat Min Matter Collected 482 | 203 205 74 Remotely . | . . . Salvage Created 357 | . 206 151 Parts 20 | . 15 5 Haulers Intercepted . | . . . Recyclers Shooed . | . . . Parts Field Recycled . | . . . Retrieved Matter . | . . . Parts Self-Destructed . | . . . Prevented . | . . . Kills | -11 -10 -10 ------- Run | Yrd Mat Min Combat Hostiles Destroyed 11 | . 3 8 Guns 4 | . 2 2 Cannons 1 | . 1 . AOE 6 | . . 6 Classes Destroyed 6 | . 3 3 Builder 1 | . 1 . Recycler 1 | . . 1 Watcher 2 | . 2 . Grunt 3 | . 3 . Sentry 2 | . . 2 Assembled 6 | . . 6 Best Kill Streak 6 | . 1 6 Combat Bots Only 6 | . 1 6 Max Kills in Single Turn 4 | . 1 4 Gunslinging . | . . . Exploded 4 | . . 4 Melee . | . . . Uniques/NPCs Destroyed . | . . . Combat | -11 -10 -10 -------- Run | Yrd Mat Min Hostile Shots Fired 101 | . 38 63 Missed 30 | . 17 13 Damage Taken 1116 | . 306 810 Core 266 | . 45 221 Absorbed by Shields . | . . . Regen/Repaired (Parts) 45 | . 45 . Core Remaining (%) 100 | 100 . . Volleys Fired 42 | . 24 18 Largest 2 | . 2 2 Hottest 80 | . 80 80 Shots Fired 78 | . 48 30 Gun 51 | . 33 18 Cannon 22 | . 15 7 Launcher 5 | . . 5 Special . | . . . Kinetic 51 | . 33 18 Thermal 22 | . 15 7 Explosive 5 | . . 5 Electromagnetic . | . . . Robot Hit Streak 11 | . 11 9 Robot Miss Streak 4 | . 4 3 Penetration Max . | . . . Secondary Targets . | . . . Shots Hit Robots 54 | . 30 24 Core Hits 29 | . 11 18 Critical Kills . | . . . Critical Parts Destroyed . | . . . Critical Strikes . | . . . Melee Attacks . | . . . Impact . | . . . Slashing . | . . . Piercing . | . . . Sneak Attacks . | . . . Combat Hostiles . | . . . Follow-up Attacks . | . . . Damage Inflicted 1247 | . 424 823 Guns 433 | . 247 186 Cannons 265 | . 177 88 Explosions 549 | . . 549 Melee . | . . . Ramming . | . . . Kinetic 433 | . 247 186 Thermal 265 | . 177 88 Explosive 549 | . . 549 Electromagnetic . | . . . Impact . | . . . Slashing . | . . . Piercing . | . . . Highest Corruption . | . . . Average Corruption . | . . . Corruption Purged . | . . . Corruption Blocked . | . . . Overload Shots . | . . . Overflow Damage 15 | . . 15 Projectiles . | . . . Explosions 15 | . . 15 Melee . | . . . Knockbacks . | . . . Impact . | . . . Kinetic . | . . . Secondary . | . . . Self-Inflicted Damage 27 | . . 27 Shots 1 | . . 1 Rammed . | . . . Targets Rammed . | . . . Kicked . | . . . Crushed . | . . . Highest Temperature 301 | . 301 209 Average Temperature 128 | . 128 129 Received Heat Transfer 425 | . 198 227 Siege Activations . | . . . Robots Corrupted . | . . . Combat Hostiles . | . . . Parts Fried . | . . . Impact Corruptions . | . . . Robots Melted . | . . . Combat Hostiles . | . . . Parts Melted . | . . . Heat Transferred 555 | . 370 185 Parts Sabotaged . | . . . Parts Stolen . | . . . Parts Stripped . | . . . Power Chain Reactions . | . . . Alert | -11 -10 -10 ------- Run | Yrd Mat Min Peak Influence 97 | . 97 66 Initial . | . . . Average 32 | . 31 40 Maximum Alert Level . | . . . Low Security (%) 100 | 100 100 100 Level 1 . | . . . Level 2 . | . . . Level 3 . | . . . Level 4 . | . . . Level 5 . | . . . High Security . | . . . Max Security . | . . . Squads Dispatched 3 | . 3 . Investigation 3 | . 3 . Extermination . | . . . Reinforcement . | . . . Assault . | . . . Garrison . | . . . Intercept . | . . . Searches Triggered . | . . . Construction Impeded . | . . . Haulers Reinforced . | . . . Active Scanning Responses . | . . . Cargo Convoy Interrupts . | . . . Stealth | -11 -10 -10 --------- Run | Yrd Mat Min Distress Signals 1 | . 1 . Communications Jammed . | . . . Distress Signals . | . . . Times Spotted 28 | . 7 21 Peak Tracking Total 16 | . 2 16 Tactical Retreats 2 | . . 2 Traps | -11 -10 -10 ------- Run | Yrd Mat Min Traps Triggered 1 | . 1 . Indirectly . | . . . Trap Hack Attempts . | . . . Triggered . | . . . Disarmed . | . . . Reprogrammed . | . . . Reused . | . . . Traps Extracted . | . . . Installed . | . . . Triggered . | . . . Machines | -11 -10 -10 ---------- Run | Yrd Mat Min Machines Disabled 3 | . 1 2 Max in Single Turn 2 | . 1 2 Machines Repaired . | . . . Machines Dismantled . | . . . Machines Sabotaged . | . . . Overloaded Fab Kills . | . . . Hacking | -11 -10 -10 --------- Run | Yrd Mat Min Machines Accessed 8 | . 8 . Terminals 7 | . 7 . Fabricators . | . . . Repair Stations 1 | . 1 . Recycling Units . | . . . Scanalyzers . | . . . Garrison Access . | . . . Total Hacks 22 | . 22 . Successful 12 | . 12 . Failed 10 | . 10 . Catastrophic 1 | . 1 . Database Lockouts . | . . . Manual . | . . . Terminals 19 | . 19 . Fabricators . | . . . Repair Stations 3 | . 3 . Recycling Units . | . . . Scanalyzers . | . . . Garrison Access . | . . . Terminal Hacks 9 | . 9 . Terminal Index 1 | . 1 . Alert Level 2 | . 2 . Locate Traps 2 | . 2 . Dispatch Records 1 | . 1 . Maintenance Status 1 | . 1 . Hauler Manifests 1 | . 1 . Zone Layout 1 | . 1 . Fabricator Hacks . | . . . Repair Station Hacks 3 | . 3 . Scan Component 2 | . 2 . Repair 1 | . 1 . Recycling Unit Hacks . | . . . Scanalyzer . | . . . Garrison Access Hacks . | . . . Unauthorized Hacks . | . . . Terminals . | . . . Fabricators . | . . . Repair Stations . | . . . Recycling Units . | . . . Scanalyzers . | . . . Garrison Access . | . . . Data Cores Recovered . | . . . Used . | . . . Hacking Detections 7 | . 7 . Full Trace Events 5 | . 5 . Feedback Events . | . . . Feedback Blocked . | . . . Robot Schematics Acquired . | . . . Robots Built . | . . . Authchips . | . . . Time . | . . . Total Robot Build Rating . | . . . Part Schematics Acquired . | . . . Parts Built . | . . . Authchips . | . . . Time . | . . . Total Part Build Rating . | . . . Parts Repaired 1 | . 1 . Time 26 | . 26 . Parts Recycled . | . . . Recycled Matter . | . . . Retrieved Matter . | . . . Retrieved Components . | . . . Parts Scanalyzed . | . . . Part Schematics Acquired . | . . . Parts Damaged . | . . . Bothacking | -11 -10 -10 ------------ Run | Yrd Mat Min Used RIF Installer . | . . . Robots Hacked . | . . . Non-combat . | . . . Combat . | . . . Robot Hacks Applied . | . . . Relay Couplers Released . | . . . Fabnet Peak Effective % . | . . . Robots Rewired . | . . . Allies Hacked . | . . . Hacks Repelled . | . . . Allies | -11 -10 -10 -------- Run | Yrd Mat Min Total Allies . | . . . Largest Group . | . . . Highest-Rated Group . | . . . Highest-Rated Ally . | . . . Total Orders . | . . . Ally Attacks . | . . . Total Damage . | . . . Kills . | . . . Allies Corrupted . | . . . Allies Melted . | . . . Intel | -11 -10 -10 ------- Run | Yrd Mat Min Robot Analysis Total . | . . . Derelict Logs Recovered 1 | . . 1 Drone Launches . | . . . Drone Recoveries . | . . . Exploration | -11 -10 -10 ------------- Run | Yrd Mat Min Turns Passed 1618 | 45 1243 330 Spaces Moved 995 | 31 790 174 Core 10 | 6 . 4 Treads 118 | . . 118 Legs 867 | 25 790 52 Wheels . | . . . Hover . | . . . Flight . | . . . Fastest Speed 50 | 50 120 120 Average Speed 124 | 109 120 148 Slowest Speed 200 | 120 120 200 Overloaded Moves . | . . . Propulsion Burnouts . | . . . Robots Hopped . | . . . Cave-ins Triggered . | . . . Exploration Rate (%) 47 | 3 99 41 Regions Visited 2 Branch Regions 1 Pre-discovered Areas . | . . . Known Exits Taken 1 | . 1 . Unknown Exits Taken 1 | 1 . . Scrap Searched . | . . . Spaces Dug . | . . . Terrain Destroyed 46 | . 11 35 Melee . | . . . Projectile . | . . . AOE 46 | . 11 35 Terrain Rammed . | . . . Walls Destroyed . | . . . Machines Disabled . | . . . Actions | -11 -10 -10 --------- Run | Yrd Mat Min Total 1297 | 42 1038 217 Wait 220 | . 204 16 Move 993 | 30 789 174 Hop . | . . . Pick Up 21 | 6 11 4 Fast Attach 1 | . 1 . Attach 10 | 6 1 3 Detach . | . . . Swap 6 | . 5 1 Drop 4 | . 3 1 Fire 42 | . 24 18 Melee . | . . . Ram . | . . . Kick . | . . . Crush . | . . . Escape Stasis . | . . . Rewire . | . . . Trap . | . . . Miscellaneous . | . . . Route ------- -11/Scrapyard -10/Materials (discovered 5 exits: *Mat x3 / *Min x2) -10/Mines (discovered 1 exit: Mat) History --------- Turn | Location | Event 3 | -11/Scrapyard | Discovered new exit (range 16) 46 | -11/Scrapyard | Entered Materials 296 | -10/Materials | Discovered new exit (range 4) 301 | -10/Materials | Build established: Mutant 457 | -10/Materials | Discovered new exit (range 16) 570 | -10/Materials | Discovered new exit (range 16) 679 | -10/Materials | Discovered new exit (range 4) 683 | -10/Materials | Identified exit to Materials 775 | -10/Materials | Discovered new exit (range 8) 782 | -10/Materials | Identified exit to Mines 1195 | -10/Materials | Repaired Ion Engine 1289 | -10/Materials | Entered Mines 1296 | -10/Mines | Received a Rocket Launcher from a helpful Derelict 1383 | -10/Mines | Core integrity fell below 50% 1392 | -10/Mines | Core integrity fell below 20% 1420 | -10/Mines | Lost 5 parts (1p2n2w) 1544 | -10/Mines | Assembled infested the area 1549 | -10/Mines | Assisted by a Guerilla fighting off Assembled 1619 | -10/Mines | Destroyed by as-37258 with Assembled Maul Last Messages --------------- R-06 Scavenger system corrupted by crushing effect. R-06 Scavenger system terminally corrupted. HV Slug penetrates as-04972. as-04972 suffers critical hit (Destroy). as-04972 destroyed. HV Slug penetrates Wall. T-07 Excavator destroyed. Destroyed Asb. Hover Unit. as-52443 destroyed. as-13845 destroyed. as-78743 destroyed. as-21504 destroyed. The unstable cave ceiling collapses. U-05 Engineer system corrupted by crushing effect. U-05 Engineer knocked back. U-05 Engineer system terminally corrupted. Hvy. Assault Rifle destroyed. System corrupted by crushing effect (+3). Map ----- +----------------------------------------------------+ | | | | | | | | | | | | | | | | | | | | | | | | | ?????????????????????????????????????????????????? | | ???????????????????????##????????????????????????? | | ???????????????????#### ????????????????????????? | | ???????????????????# ????????????????????????? | | ??????????????????? ????????????????????????? | | ???????????????????? ????????????????????????? | | ?????????????###????? ????????????????????????? | | ????????????## #???? ????????????????????????? | | ????????????# #???? ##??????????????????????? | | ????????????# ##??# ##?????????????????????? | | ?????????????# #??# ??????????????????????? | | ?????????????# #??# ??????????????#???????? | | ?????????????# ##??# #????????????? ### #???? | | ??????????????# ##?# @########?????# #???? | | ??????????????## ### a #??? #???? | | ???????????????## ## a########????# ????? | | ????????????????## #####????## ?????? | | ?????????????????## %# ##?## ???????? | | ??????????????????### aa ### #?????????? | | ????????????????????## % #??????????? | | ????????????????????# #??????????? | | ????????????????###### %! #??????????? | | ???????????????## ] ##### #??????????? | | ??????###??????# ##???## ##??????????? | | ???#??? ??????# ###????## #???????????? | | ####$??# ??????## #???????# #???????????? | | ## #??????# ### #???????# #???????????? | | ?? # #####?# #?## #???##### #???????????? | | ????#" !%[###! #??# #???# #???????????? | | ???## % = ##% #??# #???# ######???????????? | | ???# !% #??## ##???# #????????????????? | | ???# % #???###????# #######??????????? | | ??## #### ##??????????# ##" "##?????????? | | ??# #??# #???????????# # ]" #?????????? | | ##??# #####???????# # #?????????? | | ##???# #??????## ## #?????????? | | ## ##????##### #??###### # % ##?????????? | | ???# ??????????????## # #?????????? | +----------------------------------------------------+ Best States ------------- Heat Dissipation 25 Energy Generation 10 Energy Capacity 250 Matter Stores 300 Matter Capacity 300 Sight Range 16 Terrain Scan Density 10 Evasion (%) 55 Recoil Reduction 1 Item Schematics ----------------- None Robot Schematics ------------------ None Fabricated ------------ Nothing Alien Tech Used ----------------- None Achievements -------------- None Challenges ------------ None Game ------ Seed SwarmStasisSpiker Manual? 0 Play Time 00:17:11 Cumulative 9.1 hours Start 2025.03.16 @ 17:08:21 End 2025.03.16 @ 17:22:41 Sessions 1 Manual Loads 0 Difficulty Rogue Special Mode None Game No. 18 Rogue 18 Adventurer 0 Explorer 0 Win Type - Total 0 Types 0/0/0/0/0/0/0/0/0 Lore% 5 Gallery% 12 Achievement% 13 Wizard Run 0 Options --------- Layout 1 ASCII 0 Keyboard 0 Movement Mouse Keybinds 0 Fullscreen 2 Font 24/Smallcaps Map View 50x35 Zoom Use 0% Tactical HUD 0 Map Filters NONE Filters NONE Steam 1 RUN: ca7b6b29-4e25-4a38-a718-06fd582463b3